bitfinex/quotes_SOLUSD_20250815
["timestamp","ask_amount","ask_price","bid_price","bid_amount"]
[1755240463095,0.66,197.66,197.64,13.19014511]
[1755240463493,0.66,197.68,197.64,13.19014511]
[1755240463686,0.66,197.67,197.65,8.10057417]
[1755240464187,4.05846277,197.71,197.66,8.79057417]
[1755240464410,0.06,197.76,197.7,8.10057417]
[1755240464602,3.45788213,197.76,197.75,8.10057417]
[1755240464792,0.06,197.76,197.75,8.10057417]
[1755240465192,0.06,197.76,197.71,0.69]
[1755240465409,4.11778506,197.76,197.75,8.10057417]
[1755240465793,3.45778506,197.76,197.75,8.10057417]
[1755240465988,0.06,197.76,197.75,13.15746418]
[1755240466514,0.72,197.76,197.71,0.69]
[1755240466717,0.66,197.75,197.74,8.10057417]
[1755240467809,0.06,197.76,197.7,26.0]
[1755240468015,0.06,197.76,197.75,8.10057417]
[1755240469417,0.06,197.76,197.75,13.15746418]
[1755240471216,0.06,197.76,197.71,17.70269586]
[1755240471423,0.06,197.76,197.75,8.10057417]
[1755240472701,0.06,197.76,197.75,13.15746418]
[1755240474127,0.72,197.76,197.74,13.15769107]
[1755240474331,0.66,197.75,197.74,13.15769107]
[1755240475026,0.06,197.76,197.74,13.15769107]
[1755240475413,0.06,197.76,197.75,8.10057417]
[1755240475847,0.06,197.76,197.75,13.15746418]
[1755240480807,0.78,197.76,197.74,13.15765873]
[1755240481138,0.78,197.76,197.74,5.05708456]
[1755240481334,0.78,197.76,197.74,13.15765873]
[1755240481536,0.78,197.76,197.74,5.08708456]
[1755240481707,0.06,197.76,197.74,13.18765873]
[1755240482026,0.06,197.76,197.75,8.10057417]
[1755240482606,0.06,197.76,197.75,13.15746418]
[1755240484120,0.78,197.76,197.74,0.03]
[1755240484322,0.06,197.76,197.74,8.13057417]
[1755240484529,0.06,197.76,197.75,8.10057417]
[1755240484719,0.06,197.76,197.74,0.03]
[1755240484918,0.06,197.76,197.75,8.10057417]
[1755240486137,0.06,197.76,197.74,0.03]
[1755240486321,0.78,197.76,197.74,8.13057417]
[1755240486739,36.62,197.75,197.74,0.03]
[1755240486940,40.01829051,197.75,197.74,0.03]
[1755240487434,35.9,197.75,197.74,0.03]
[1755240488227,35.9,197.75,197.74,13.18771991]
[1755240488428,35.9,197.75,197.74,13.88771991]
[1755240488617,0.06,197.76,197.74,13.88771991]
[1755240488820,0.06,197.76,197.75,8.10057417]
[1755240489019,0.06,197.76,197.75,8.80057417]
[1755240489554,0.2,197.77,197.76,15.10621557]
[1755240489760,1e-08,197.81,197.8,41.10621557]
[1755240490037,3.39623541,197.88,197.81,15.10621557]
[1755240490247,36.62,197.89,197.87,8.10057417]
[1755240490426,35.9,197.89,197.87,13.15439223]
[1755240491423,36.62,197.89,197.87,13.15439223]
[1755240491622,36.62,197.89,197.87,8.10057417]
[1755240491823,0.72,197.88,197.87,8.10057417]
[1755240492128,35.9,197.89,197.87,8.10057417]
[1755240492443,36.62,197.89,197.87,8.10057417]
[1755240493344,36.62,197.89,197.88,8.10057417]
[1755240493533,35.9,197.89,197.88,8.10057417]
[1755240494336,36.62,197.89,197.88,8.10057417]
[1755240494539,35.9,197.89,197.88,8.10057417]
[1755240495039,35.9,197.89,197.88,13.15414198]
[1755240495839,36.6,197.92,197.88,13.15414198]
[1755240496137,35.88,197.92,197.9,8.10057417]
[1755240496346,36.6,197.92,197.9,8.10057417]
[1755240496548,26.0,197.96,197.91,8.10057417]
[1755240496753,0.72,197.94,197.92,8.10057417]
[1755240497247,35.88,197.95,197.9,13.15352005]
[1755240497420,0.72,197.93,197.9,13.15352005]
[1755240497620,35.88,197.95,197.92,8.10057417]
[1755240497621,36.6,197.95,197.92,8.10057417]
[1755240497848,0.72,197.94,197.92,8.10057417]
[1755240498034,0.72,197.98,197.9,5.75294588]
[1755240498223,0.72,197.98,197.92,13.15287642]
[1755240498224,0.72,197.96,197.92,13.15287642]
[1755240498428,0.72,197.95,197.92,13.15287642]
[1755240498745,0.72,197.97,197.93,8.10057417]
[1755240498932,0.72,197.96,197.93,8.10057417]
[1755240499131,35.98,197.98,197.92,5.05230225]
[1755240499333,0.72,197.95,197.92,13.15287642]
[1755240499859,0.72,197.95,197.92,5.05230225]
[1755240500227,0.06,197.93,197.92,5.05230225]
[1755240500440,0.06,197.93,197.92,13.15287642]
[1755240500643,0.06,197.93,197.92,13.85287642]
[1755240501221,0.06,197.93,197.92,28.95909199]
[1755240501429,0.06,197.95,197.93,15.10621557]
[1755240501632,0.06,197.95,197.94,23.20678974]
[1755240501947,0.06,197.95,197.94,49.90678974]
[1755240502129,0.06,197.95,197.94,65.08321574]
[1755240502329,0.06,197.95,197.94,70.13525171]
[1755240505652,2.0,198.0,197.99,15.10621557]
[1755240505823,2.0,198.0,197.99,23.20678974]
[1755240506030,2.0,198.0,197.99,23.90678974]
[1755240506527,2.0,198.0,197.99,28.95754987]
[1755240507136,7.6,198.05,197.99,41.58445021]
[1755240507343,7.6,198.05,198.04,8.10057417]
[1755240507941,8.32,198.05,198.03,8.10057417]
[1755240508331,8.32,198.05,198.03,13.15012473]
[1755240508752,8.32,198.05,198.04,8.10057417]
[1755240508753,7.6,198.05,198.04,8.10057417]
[1755240510157,7.6,198.05,198.04,13.15005912]
[1755240510531,8.32,198.05,198.04,5.04948495]
[1755240510739,8.32,198.05,198.01,8.10057417]
[1755240510940,7.6,198.05,198.03,8.10057417]
[1755240511147,7.6,198.05,198.04,8.10057417]
[1755240512144,7.6,198.05,198.04,13.15005912]
[1755240512456,7.6,198.05,198.04,28.97627469]
[1755240513167,7.6,198.05,198.04,20.87570052]
[1755240513335,7.6,198.05,198.04,28.97627469]
[1755240514340,0.2,198.13,198.04,5.04948495]
[1755240514557,0.68,198.08,198.05,8.10057417]
[1755240514766,0.68,198.08,198.06,8.10057417]
[1755240514963,0.2,198.13,198.06,8.10057417]
[1755240515150,8.78057417,198.12,198.05,8.10057417]
[1755240515352,0.68,198.11,198.05,8.10057417]
[1755240516340,0.68,198.11,198.04,5.04948495]
[1755240516341,8.10057417,198.1,198.04,5.04948495]
[1755240516551,0.68,198.09,198.04,5.04948495]
[1755240517352,0.68,198.09,198.04,5.07948495]
[1755240517865,0.68,198.09,198.04,13.18005912]
[1755240518064,0.68,198.08,198.04,13.18005912]
[1755240518561,0.74,198.11,198.06,8.10057417]
[1755240518764,0.06,198.11,198.06,8.10057417]
[1755240518943,0.68,198.1,198.06,8.10057417]
[1755240519358,0.68,198.1,198.06,13.14929536]
[1755240519562,0.68,198.09,198.06,13.14929536]
[1755240520045,0.74,198.11,198.06,13.14929536]
[1755240520451,0.74,198.11,198.07,8.10057417]
[1755240520967,0.68,198.1,198.07,8.10057417]
[1755240521167,0.68,198.1,198.07,13.14905991]
[1755240522382,0.06,198.11,198.09,8.10057417]
[1755240522570,0.06,198.11,198.08,8.10057417]
[1755240522875,0.74,198.11,198.08,8.10057417]
[1755240523249,0.68,198.1,198.08,8.10057417]
[1755240523749,0.06,198.11,198.09,5.0482104]
[1755240523946,0.06,198.11,198.09,13.14878457]
[1755240524557,0.06,198.11,198.1,8.10057417]
[1755240525658,0.06,198.11,198.1,13.14852974]
[1755240526260,0.06,198.11,198.1,13.86852974]
[1755240527172,0.06,198.11,198.1,13.14852974]
[1755240529088,0.06,198.11,198.1,28.97474531]
[1755240530992,57.6,198.14,198.1,28.97474531]
[1755240530993,57.6,198.14,198.13,26.0]
[1755240531285,57.6,198.14,198.13,34.82057417]
[1755240531782,57.6,198.14,198.13,34.10057417]
[1755240531989,57.6,198.14,198.13,26.0]
[1755240532152,57.6,198.14,198.13,34.10057417]
[1755240532354,57.6,198.14,198.13,39.1477654]
[1755240532968,57.6,198.14,198.13,31.04719123]
[1755240533367,57.6,198.14,198.13,39.1477654]
[1755240535375,57.6,198.14,198.13,31.04719123]
[1755240535577,57.6,198.14,198.13,39.1477654]
[1755240535963,58.28,198.14,198.1,41.10621557]
[1755240536283,0.68,198.13,198.12,8.10057417]
[1755240536470,57.6,198.14,198.12,8.10057417]
[1755240536656,57.6,198.14,198.13,8.10057417]
[1755240537090,57.6,198.14,198.13,34.10057417]
[1755240537658,57.6,198.14,198.13,39.1477654]
[1755240538565,58.28,198.14,198.13,39.1477654]
[1755240538765,57.6,198.14,198.13,39.1477654]
[1755240539106,57.6,198.14,198.13,54.97398097]
[1755240539683,0.42454406,198.14,198.13,28.97398097]
[1755240539916,0.06,198.16,198.15,41.10621557]
[1755240540075,1e-08,198.16,198.15,85.16678974]
[1755240540281,1e-08,198.16,198.15,59.16678974]
[1755240540485,1e-08,198.16,198.15,59.88678974]
[1755240541793,1e-08,198.16,198.15,64.93347154]
[1755240542666,1e-08,198.16,198.15,64.21347154]
[1755240542870,1e-08,198.16,198.15,64.93347154]
[1755240543896,1e-08,198.16,198.15,64.21347154]
[1755240544789,1e-08,198.16,198.15,64.93347154]
[1755240546784,1e-08,198.16,198.15,64.21347154]
[1755240547202,1e-08,198.16,198.15,64.93347154]
[1755240548912,1e-08,198.16,198.15,64.21347154]
[1755240549216,0.69000001,198.16,198.15,64.21347154]
[1755240549391,1e-08,198.16,198.15,64.21347154]
[1755240550719,1e-08,198.16,198.15,64.93347154]
[1755240551086,1e-08,198.16,198.15,28.25347154]
[1755240551289,0.69000001,198.16,198.15,28.25347154]
[1755240551510,1e-08,198.16,198.15,28.25347154]
[1755240552211,1e-08,198.16,198.15,54.28347154]
[1755240554026,0.69000001,198.16,198.15,54.28347154]
[1755240554332,0.69000001,198.16,198.15,28.28347154]
[1755240554501,0.69000001,198.16,198.15,0.03]
[1755240555130,4.07014121,198.16,198.15,0.03]
[1755240555312,0.69000001,198.16,198.15,0.03]
[1755240555503,4.07014121,198.16,198.15,0.03]
[1755240555702,0.69000001,198.16,198.15,0.03]
[1755240555902,4.07014121,198.16,198.15,0.03]
[1755240556106,0.69000001,198.16,198.15,0.03]
[1755240556310,0.69000001,198.16,198.15,8.13057417]
[1755240556633,1e-08,198.16,198.15,8.13057417]
[1755240556803,1e-08,198.16,198.15,0.03]
[1755240557006,0.69000001,198.16,198.15,0.03]
[1755240560223,0.69000001,198.16,198.15,8.13057417]
[1755240560828,1e-08,198.16,198.15,23.23678974]
[1755240561038,1e-08,198.16,198.15,23.95678974]
[1755240561196,1e-08,198.16,198.15,27.9805875]
[1755240561520,1e-08,198.16,198.15,23.95678974]
[1755240561939,1e-08,198.16,198.15,33.1070166]
[1755240562228,1e-08,198.16,198.15,29.00347154]
[1755240564525,1e-08,198.16,198.15,32.98962823]
[1755240566532,0.69,198.22,198.19,26.0]
[1755240566708,0.69,198.21,198.19,62.0]
[1755240566904,0.69,198.21,198.2,8.10057417]
[1755240567222,57.6,198.23,198.2,8.10057417]
[1755240567809,0.69,198.22,198.21,8.10057417]
[1755240568911,4.08125989,198.22,198.17,13.14654317]
[1755240569110,0.69,198.21,198.17,13.14654317]
[1755240569320,0.69,198.21,198.17,8.10057417]
[1755240569538,0.69,198.21,198.15,0.03]
[1755240569539,3.39251512,198.2,198.15,0.03]
[1755240569733,4.08251512,198.19,198.15,0.03]
[1755240569917,0.69,198.19,198.15,5.07660468]
[1755240570637,0.69,198.18,198.15,13.17717885]
[1755240570933,0.72,198.17,198.15,13.17717885]
[1755240571133,8.10057417,198.22,198.15,13.17717885]
[1755240571134,0.72,198.16,198.15,13.17717885]
[1755240571434,0.72,198.16,198.15,0.03]
[1755240571927,4.11453664,198.16,198.15,0.03]
[1755240573536,3.39453664,198.17,198.15,8.13057417]
[1755240573710,57.6,198.23,198.17,15.10621557]
[1755240573917,4.11478384,198.22,198.21,8.10057417]
[1755240574435,4.11478384,198.22,198.2,5.04540867]
[1755240574641,0.72,198.22,198.21,8.10057417]
[1755240575226,0.72,198.22,198.2,13.14598284]
[1755240575429,0.72,198.21,198.2,13.14598284]
[1755240576243,0.72,198.21,198.2,5.04540867]
[1755240576412,0.72,198.21,198.2,13.14598284]
[1755240576844,4.11521087,198.21,198.17,13.1467364]
[1755240577141,4.11521087,198.2,198.17,13.1467364]
[1755240577447,0.72,198.19,198.15,26.03]
[1755240577639,3.39602339,198.18,198.15,26.03]
[1755240577947,4.11602232,198.17,198.15,5.07660492]
[1755240578147,0.72,198.16,198.15,5.07660492]
[1755240578730,0.72,198.16,198.15,0.03]
[1755240579741,36.06,198.17,198.15,8.13057417]
[1755240580041,36.78,198.17,198.15,0.03]
[1755240580428,0.72,198.16,198.15,0.03]
[1755240581850,4.11656186,198.16,198.15,0.03]
[1755240582321,0.46774,198.16,198.15,0.03]
[1755240582951,3.8641722,198.16,198.15,0.03]
[1755240584648,0.46774,198.16,198.15,0.03]
[1755240585569,0.52774,198.16,198.15,0.03]
[1755240586779,3.92331213,198.16,198.15,0.03]
[1755240588272,143.9238863,198.16,198.15,0.03]
[1755240588475,148.97031342,198.16,198.15,0.03]
[1755240589254,152.74197265,198.16,198.15,0.03]
[1755240589452,182.74197265,198.16,198.15,0.03]
[1755240589749,185.87031342,198.16,198.15,0.03]
[1755240590778,155.87031342,198.16,198.15,0.03]
[1755240591489,147.76973925,198.16,198.15,0.03]
[1755240591794,155.87031342,198.16,198.15,0.03]
[1755240593887,185.87031342,198.16,198.15,0.03]
[1755240594871,155.87031342,198.16,198.15,0.03]
[1755240597895,185.87031342,198.16,198.15,0.03]
[1755240600176,53.97031342,198.16,198.15,0.03]
[1755240600377,57.73613329,198.16,198.15,0.03]
[1755240600894,40.35557213,198.16,198.15,0.68]
[1755240601096,30.06,198.16,198.15,8.78057417]
[1755240601296,0.06,198.16,198.15,8.78057417]
[1755240601504,0.06,198.16,198.15,0.68]
[1755240601679,0.06,198.16,198.15,8.78057417]
[1755240602003,0.06,198.16,198.15,13.82725597]
[1755240602498,0.06,198.16,198.15,5.7266818]
[1755240602817,0.06,198.16,198.15,0.03]
[1755240602979,0.73,198.16,198.15,0.03]
[1755240603177,4.11825387,198.16,198.15,0.03]
[1755240603379,12.21882804,198.16,198.15,0.03]
[1755240604001,47.26525516,198.16,198.15,0.03]
[1755240604573,66.13697806,198.16,198.15,0.03]
[1755240605278,62.37147073,198.16,198.15,0.03]
[1755240605707,32.37147073,198.16,198.15,0.03]
[1755240606604,39.27147073,198.16,198.15,0.03]
[1755240607706,43.0353194,198.16,198.15,0.03]
[1755240608475,43.0353194,198.16,198.13,0.03]
[1755240608678,53.20678974,198.14,198.13,0.03]
[1755240609007,15.10621557,198.13,198.11,0.03]
[1755240609306,179.40882804,198.12,198.11,0.03]
[1755240609488,12.15882804,198.12,198.11,0.03]
[1755240609692,66.02,198.12,198.11,0.03]
[1755240610032,69.40825387,198.12,198.11,0.03]
[1755240610202,39.40825387,198.12,198.11,0.03]
[1755240610780,5.71671403,198.15,198.11,0.68]
[1755240610781,8.10057417,198.15,198.11,0.68]
[1755240610977,36.0,198.14,198.12,0.65]
[1755240611202,30.0,198.13,198.12,0.65]
[1755240611381,36.0,198.14,198.13,0.65]
[1755240611577,36.0,198.14,198.13,5.69719123]
[1755240612384,6.96,198.16,198.13,13.7977654]
[1755240612585,36.02,198.15,198.14,0.65]
[1755240612801,0.06,198.16,198.14,0.65]
[1755240612802,0.06,198.16,198.14,8.75057417]
[1755240613303,0.06,198.16,198.15,0.65]
[1755240613494,0.06,198.16,198.15,8.75057417]
[1755240613695,0.06,198.16,198.15,13.79725597]
[1755240614993,36.08,198.16,198.15,13.79725597]
[1755240617400,36.08,198.16,198.15,13.82725597]
[1755240618591,36.08,198.16,198.15,5.7266818]
[1755240618784,36.08,198.16,198.15,5.0766818]
[1755240619488,36.08,198.16,198.15,0.03]
[1755240623419,40.14234679,198.16,198.15,0.03]
[1755240624121,53.28934808,198.16,198.15,0.03]
[1755240624908,60.18934808,198.16,198.15,0.03]
[1755240627521,52.08877391,198.16,198.15,0.03]
[1755240627720,60.18934808,198.16,198.15,0.03]
[1755240629126,90.18934808,198.16,198.15,0.03]
[1755240630196,54.16934808,198.16,198.15,0.03]
[1755240630401,90.06934808,198.16,198.15,0.03]
[1755240631329,36.96,198.16,198.15,8.82057417]
[1755240631516,6.96,198.16,198.15,8.82057417]
[1755240631703,3.45277501,198.16,198.15,0.03]
[1755240631908,40.09277501,198.16,198.15,0.03]
[1755240633632,48.19334918,198.16,198.15,0.03]
[1755240634047,53.2397763,198.16,198.15,0.03]
[1755240634524,48.19334918,198.16,198.15,0.03]
[1755240634709,39.43277501,198.16,198.15,0.03]
[1755240635436,39.41277501,198.16,198.15,0.72]
[1755240635807,36.02,198.16,198.15,0.72]
[1755240636210,48.17373942,198.16,198.15,0.03]
[1755240637344,55.07373942,198.16,198.15,0.03]
[1755240637934,60.12016654,198.16,198.15,0.03]
[1755240639428,63.89136374,198.16,198.15,0.03]
[1755240639610,55.07373942,198.16,198.15,0.03]
[1755240639815,10.35316525,198.16,198.15,8.13057417]
[1755240640014,0.06,198.16,198.15,8.82057417]
[1755240641538,0.06,198.16,198.15,34.82057417]
[1755240642036,0.06,198.18,198.15,54.97347154]
[1755240642219,0.06,198.18,198.17,8.10057417]
[1755240642741,0.06,198.18,198.17,8.79057417]
[1755240643111,0.06,198.18,198.17,8.10057417]
[1755240643317,36.12,198.18,198.15,5.0766818]
[1755240643517,3.39144382,198.17,198.15,0.03]
[1755240643717,36.78,198.18,198.15,0.03]
[1755240643934,39.45149556,198.17,198.15,0.03]
[1755240644135,36.72,198.17,198.15,0.03]
[1755240645241,12.15216912,198.16,198.15,0.03]
[1755240646446,17.19859624,198.16,198.15,0.03]
[1755240646753,22.09740938,198.16,198.15,0.03]
[1755240647332,37.20362495,198.16,198.15,0.03]
[1755240648241,67.20362495,198.16,198.15,0.03]
[1755240649238,52.09740938,198.16,198.15,0.03]
[1755240649440,33.39159495,198.16,198.15,0.03]
[1755240649646,69.45159495,198.16,198.15,0.03]
[1755240650543,30.0,198.16,198.15,13.71938731]
[1755240650751,36.06,198.16,198.15,13.71938731]
[1755240651544,36.18,198.18,198.15,13.71938731]
[1755240651824,36.18,198.18,198.17,12.99938731]
[1755240652044,39.57193078,198.18,198.17,13.68938731]
[1755240652242,39.57193078,198.18,198.16,12.99938731]
[1755240652439,36.18,198.18,198.16,12.99938731]
[1755240652952,36.18,198.18,198.16,13.68938731]
[1755240653255,36.18,198.18,198.16,18.73571798]
[1755240655251,36.18,198.18,198.15,13.02938731]
[1755240655455,36.18,198.18,198.15,13.71938731]
[1755240655753,36.18,198.18,198.16,12.99938731]
[1755240656351,36.18,198.18,198.16,18.04563908]
[1755240656753,36.18,198.18,198.16,5.04625177]
[1755240657053,4.05399755,198.17,198.15,0.03]
[1755240657260,3.39405123,198.16,198.15,0.03]
[1755240657757,4.05405123,198.16,198.15,0.03]
[1755240657960,17.05343854,198.16,198.15,0.03]
[1755240658455,4.05405123,198.16,198.15,0.03]
[1755240659960,10.45405123,198.16,198.15,0.03]
[1755240662757,4.05405123,198.16,198.15,0.03]
[1755240663264,40.07405123,198.16,198.15,0.03]
[1755240664066,58.14986566,198.16,198.15,0.03]
[1755240664446,53.10343854,198.16,198.15,0.03]
[1755240664663,58.14986566,198.16,198.15,0.03]
[1755240666740,53.1793924,198.16,198.15,0.03]
[1755240669057,83.1793924,198.16,198.15,0.03]
[1755240670176,83.2393924,198.16,198.15,0.03]
[1755240670674,57.01177154,198.16,198.15,0.03]
[1755240671172,72.11798711,198.16,198.15,0.03]
[1755240671469,26.0,198.14,198.13,0.03]
[1755240671678,122.26173384,198.14,198.13,0.03]
[1755240671861,127.1967609,198.14,198.13,0.03]
[1755240672063,15.10621557,198.13,198.11,0.03]
[1755240672266,92.28173384,198.12,198.11,0.03]
[1755240672456,92.97173384,198.12,198.11,0.03]
[1755240672657,132.26466789,198.12,198.11,0.03]
[1755240673258,128.01917983,198.12,198.11,0.03]
[1755240674276,71.19551827,198.12,198.11,0.03]
[1755240674480,69.37405123,198.12,198.11,0.72]
[1755240674780,39.37405123,198.12,198.11,0.03]
[1755240678960,39.37405123,198.12,198.11,0.72]
[1755240679164,3.39405123,198.12,198.11,0.72]
[1755240679378,35.96,198.12,198.11,8.74891405]
[1755240680667,35.96,198.12,198.11,13.79661482]
[1755240683667,35.96,198.12,198.11,5.76770077]
[1755240684393,35.96,198.12,198.11,0.72]
[1755240684892,35.96,198.12,198.11,13.79661482]
[1755240685766,35.92,198.13,198.11,13.79661482]
[1755240686072,35.92,198.13,198.12,13.76636004]
[1755240686269,0.06,198.15,198.12,13.76636004]
[1755240686474,35.96,198.15,198.14,8.02891405]
[1755240686679,35.96,198.15,198.14,8.71891405]
[1755240686985,0.06,198.15,198.14,8.71891405]
[1755240687687,0.06,198.15,198.14,13.76585055]
[1755240692078,0.06,198.15,198.14,13.07585055]
[1755240692386,0.06,198.15,198.14,5.0469365]
[1755240692564,0.06,198.15,198.14,8.02891405]
[1755240692965,0.06,198.15,198.13,13.07608542]
[1755240694867,0.7,198.14,198.11,0.03]
[1755240695072,3.45099558,198.15,198.12,8.02891405]
[1755240695375,0.06,198.15,198.12,8.02891405]
[1755240695766,0.06,198.15,198.14,8.02891405]
[1755240696167,0.06,198.15,198.14,8.69891405]
[1755240697191,0.06,198.15,198.14,13.74585055]
[1755240698474,0.06,198.15,198.14,8.02891405]
[1755240699191,0.76,198.15,198.13,8.02891405]
[1755240699373,0.06,198.15,198.14,8.02891405]
[1755240699991,0.06,198.15,198.14,0.67]
[1755240700197,0.06,198.15,198.14,8.69891405]
[1755240701190,0.06,198.15,198.14,13.07585055]
[1755240702194,0.06,198.15,198.13,5.04719123]
[1755240702399,0.06,198.15,198.14,8.02891405]
[1755240703090,0.06,198.15,198.14,8.69891405]
[1755240704389,0.06,198.15,198.14,13.74585055]
[1755240706071,0.06,198.15,198.14,8.69891405]
[1755240706271,0.06,198.15,198.14,13.74585055]
[1755240706781,0.06,198.15,198.13,13.07605532]
[1755240707091,0.76,198.15,198.13,39.07605532]
[1755240707287,0.76,198.15,198.13,13.07605532]
[1755240708400,0.76,198.15,198.14,8.02891405]
[1755240710498,0.76,198.15,198.13,13.07605532]
[1755240710800,0.06,198.15,198.13,13.07605532]
[1755240712108,0.06,198.15,198.14,8.02891405]
[1755240712485,0.06,198.15,198.14,8.69891405]
[1755240714016,0.06,198.15,198.14,13.74585055]
[1755240715501,0.06,198.16,198.15,41.10621557]
[1755240715803,0.06,198.16,198.15,49.80512962]
[1755240716382,0.06,198.16,198.15,8.02891405]
[1755240717302,0.06,198.16,198.15,39.07559585]
[1755240717501,0.06,198.16,198.15,13.07559585]
[1755240718382,0.76,198.16,198.14,8.02891405]
[1755240718583,0.76,198.16,198.13,13.07610528]
[1755240718584,0.7,198.15,198.13,13.07610528]
[1755240718993,0.06,198.16,198.13,8.02891405]
[1755240718994,0.7,198.14,198.13,8.02891405]
[1755240720706,0.7,198.14,198.11,35.95]
[1755240720904,0.66,198.13,198.11,0.03]
[1755240721212,0.66,198.12,198.11,0.03]
[1755240721382,4.05573342,198.15,198.11,8.05891405]
[1755240721583,4.05573342,198.14,198.11,13.10656711]
[1755240721779,0.66,198.14,198.11,13.10656711]
[1755240722010,0.66,198.13,198.11,13.10656711]
[1755240725687,0.72,198.16,198.11,13.10656711]
[1755240725900,3.39861236,198.15,198.11,13.10656711]
[1755240726101,4.05861236,198.14,198.11,13.10656711]
[1755240726386,3.39861236,198.13,198.11,13.10656711]
[1755240726707,0.66,198.14,198.11,13.10656711]
[1755240726905,3.398612,198.13,198.11,13.10656711]
[1755240727116,0.66,198.14,198.11,13.10656711]
[1755240727293,3.39875323,198.13,198.11,13.10656711]
[1755240727493,3.39875323,198.12,198.11,13.10656711]
[1755240727695,3.39875323,198.12,198.11,5.07765306]
[1755240727908,3.39875323,198.12,198.11,8.05891405]
[1755240728630,3.39875323,198.12,198.11,13.10661482]
[1755240729294,0.66,198.14,198.11,13.10661482]
[1755240729608,4.0587106,198.13,198.11,13.10661482]
[1755240729811,0.66,198.13,198.11,13.10661482]
[1755240730317,0.66,198.13,198.11,0.03]
[1755240730490,0.66,198.13,198.11,8.05891405]
[1755240731313,0.66,198.15,198.11,8.05891405]
[1755240731485,4.05823674,198.14,198.11,8.05891405]
[1755240731690,3.39823674,198.13,198.11,8.05891405]
[1755240731990,0.66,198.13,198.11,8.05891405]
[1755240732187,0.66,198.13,198.11,13.10649447]
[1755240734013,0.66,198.13,198.12,8.02891405]
[1755240734308,0.66,198.15,198.12,8.02891405]
[1755240734520,3.39766274,198.14,198.12,8.02891405]
[1755240734705,0.66,198.14,198.12,8.02891405]
[1755240734905,4.05771165,198.13,198.12,8.02891405]
[1755240737014,4.05771165,198.13,198.11,13.1065728]
[1755240737210,0.66,198.13,198.11,13.1065728]
[1755240737812,0.66,198.15,198.11,13.1065728]
[1755240737999,3.39742875,198.14,198.11,13.1065728]
[1755240738199,3.39742875,198.13,198.11,8.05891405]
[1755240738401,0.66,198.14,198.11,8.05891405]
[1755240738599,3.39737856,198.13,198.11,8.05891405]
[1755240738816,0.66,198.13,198.11,8.05891405]
[1755240741215,0.72,198.15,198.11,13.1065404]
[1755240741396,0.66,198.12,198.11,0.03]
[1755240741598,47.98614339,198.12,198.11,0.03]
[1755240742432,53.03358938,198.12,198.11,0.03]
[1755240742805,39.95722934,198.12,198.11,0.03]
[1755240744430,3.39722934,198.12,198.11,8.05891405]
[1755240744622,3.39543755,198.14,198.11,8.77891405]
[1755240744802,3.39543755,198.13,198.11,0.75]
[1755240745000,3.39543272,198.14,198.11,0.75]
[1755240745232,35.96,198.15,198.11,0.03]
[1755240745407,3.39546947,198.14,198.12,0.72]
[1755240745738,35.96,198.15,198.12,0.72]
[1755240745916,35.96,198.15,198.14,8.02891405]
[1755240746230,39.35527362,198.15,198.14,8.02891405]
[1755240746626,40.01527362,198.15,198.14,8.02891405]
[1755240746916,3.45527362,198.15,198.13,8.02891405]
[1755240747107,0.06,198.15,198.13,8.02891405]
[1755240747307,3.39578914,198.14,198.13,8.02891405]
[1755240748626,17.13170019,198.14,198.11,0.03]